bitfinex-derivatives/quotes_BTCF0:USTF0_20241005
["timestamp","ask_amount","ask_price","bid_price","bid_amount"]
[1728124080919,0.022,62249.0,62248.0,0.057223]
[1728124088028,0.0923627,62249.0,62248.0,0.057223]
[1728124088418,0.14166645,62249.0,62248.0,0.057223]
[1728124091621,0.14166644,62249.0,62248.0,0.057223]
[1728124095921,0.022,62249.0,62248.0,0.30363552]
[1728124098527,0.022,62249.0,62248.0,0.30362742]
[1728124101523,0.022,62249.0,62248.0,0.30362172]
[1728124102928,0.022,62249.0,62248.0,0.26607574]
[1728124104737,0.022,62249.0,62248.0,0.16963314]
[1728124105041,0.022,62249.0,62248.0,0.26607477]
[1728124106536,0.022,62249.0,62248.0,0.26604839]
[1728124110632,0.022,62249.0,62248.0,0.16960676]
[1728124110833,0.022,62249.0,62248.0,0.057223]
[1728124111028,0.16637492,62249.0,62248.0,0.057223]
[1728124111230,0.20570986,62249.0,62248.0,0.057223]
[1728124111530,0.2860412,62249.0,62248.0,0.057223]
[1728124112241,0.2860412,62249.0,62248.0,0.177223]
[1728124113939,0.14166628,62249.0,62248.0,0.177223]
[1728124116233,0.1726929,62249.0,62248.0,0.177223]
[1728124116429,0.16625875,62249.0,62248.0,0.177223]
[1728124116644,0.14166524,62249.0,62248.0,0.177223]
[1728124118134,0.022,62249.0,62248.0,0.42360014]
[1728124119439,0.0075,62252.0,62251.0,0.056221]
[1728124119643,0.059918,62254.0,62251.0,0.42259814]
[1728124119940,0.059918,62254.0,62253.0,0.09643727]
[1728124120145,0.056218,62254.0,62253.0,0.20883756]
[1728124120843,0.056218,62254.0,62253.0,0.16861929]
[1728124121047,0.056218,62254.0,62253.0,0.056219]
[1728124121247,0.056218,62254.0,62253.0,0.16843816]
[1728124122147,0.057218,62254.0,62253.0,0.16943816]
[1728124123139,0.062218,62254.0,62253.0,0.17043816]
[1728124125448,0.062218,62254.0,62253.0,0.26686795]
[1728124125649,0.062218,62254.0,62253.0,0.29549186]
[1728124126142,0.062218,62254.0,62251.0,0.12]
[1728124126143,0.1327144,62254.0,62251.0,0.07824775]
[1728124126447,0.11979958,62253.0,62252.0,0.05622]
[1728124128944,0.13479958,62253.0,62252.0,0.05822]
[1728124131051,0.13466492,62253.0,62252.0,0.05822]
[1728124133055,0.015,62253.0,62252.0,0.17139139]
[1728124134748,0.015,62253.0,62252.0,0.30629767]
[1728124135455,0.015,62253.0,62252.0,0.17139139]
[1728124139349,0.015,62253.0,62252.0,0.30630463]
[1728124139549,0.015,62253.0,62252.0,0.17139139]
[1728124139758,0.015,62253.0,62252.0,0.30629301]
[1728124140552,0.015,62253.0,62252.0,0.17139139]
[1728124141050,0.015,62253.0,62251.0,0.06259275]
[1728124141051,0.13466509,62253.0,62251.0,0.06259275]
[1728124141254,0.13466509,62253.0,62251.0,0.08555088]
[1728124141255,0.11966536,62252.0,62251.0,0.08555088]
[1728124141452,0.11966536,62252.0,62251.0,0.056221]
[1728124142462,0.11966536,62252.0,62251.0,0.057221]
[1728124142463,0.12166536,62252.0,62251.0,0.057221]
[1728124142756,0.12166536,62252.0,62251.0,0.058221]
[1728124143366,0.13366536,62252.0,62251.0,0.058221]
[1728124144662,0.18988536,62252.0,62251.0,0.058221]
[1728124145249,0.18988536,62252.0,62251.0,0.08759691]
[1728124148266,0.03003388,62252.0,62251.0,0.33727389]
[1728124150268,0.03003388,62252.0,62251.0,0.28105289]
[1728124153763,0.03003388,62252.0,62251.0,0.03137591]
[1728124153963,0.03003388,62252.0,62251.0,0.28220477]
[1728124156269,0.10039603,62252.0,62251.0,0.12]
[1728124156761,0.06106134,62252.0,62251.0,0.12]
[1728124156968,0.1496994,62252.0,62251.0,0.12]
[1728124157565,0.1496994,62252.0,62251.0,0.176221]
[1728124158662,0.03003388,62252.0,62251.0,0.176221]
[1728124158864,0.06106101,62252.0,62251.0,0.176221]
[1728124159662,0.14969811,62252.0,62251.0,0.176221]
[1728124163157,0.03003388,62252.0,62251.0,0.38803776]
[1728124165969,0.03003388,62252.0,62251.0,0.29160079]
[1728124168470,0.03003388,62252.0,62251.0,0.38803681]
[1728124168670,0.03003388,62252.0,62251.0,0.29160079]
[1728124171163,0.03003388,62252.0,62251.0,0.176221]
[1728124178380,0.06106088,62252.0,62251.0,0.176221]
[1728124178571,0.03003388,62252.0,62251.0,0.176221]
[1728124178764,0.10039499,62252.0,62251.0,0.176221]
[1728124181365,0.07036111,62252.0,62251.0,0.176221]
[1728124183570,0.031027,62252.0,62251.0,0.176221]
[1728124183771,0.031027,62252.0,62251.0,0.208821]
[1728124185078,0.037027,62252.0,62251.0,0.209821]
[1728124186079,0.039027,62252.0,62251.0,0.210821]
[1728124186274,0.008,62252.0,62251.0,0.46312837]
[1728124186475,0.0075,62255.0,62254.0,0.056218]
[1728124186671,0.0037,62257.0,62256.0,0.056216]
[1728124186980,0.0075,62258.0,62257.0,0.056215]
[1728124187181,0.056214,62259.0,62258.0,0.056214]
[1728124187477,0.056214,62259.0,62258.0,0.17131974]
[1728124187876,0.056214,62259.0,62258.0,0.17124563]
[1728124188275,0.056214,62259.0,62258.0,0.29124563]
[1728124188475,0.060214,62259.0,62258.0,0.29224563]
[1728124189483,0.060214,62259.0,62258.0,0.32228805]
[1728124191176,0.060214,62259.0,62258.0,0.418641]
[1728124192882,0.060214,62259.0,62258.0,0.41859376]
[1728124193379,0.004,62259.0,62258.0,0.20725642]
[1728124193586,0.060214,62259.0,62258.0,0.20725642]
[1728124201381,0.091238,62259.0,62258.0,0.11395431]
[1728124201686,0.17986616,62259.0,62258.0,0.11395431]
[1728124202482,0.17986616,62259.0,62258.0,0.17016831]
[1728124203784,0.12365216,62259.0,62258.0,0.17016831]
[1728124208293,0.1641576,62259.0,62258.0,0.4219029]
[1728124209289,0.1641576,62259.0,62258.0,0.7827029]
[1728124209484,0.1601576,62259.0,62258.0,0.7817029]
[1728124209686,0.1601576,62259.0,62258.0,0.7827029]
[1728124210086,0.0037,62260.0,62259.0,0.056213]
[1728124210288,0.0075,62261.0,62260.0,0.056213]
[1728124210587,0.0037,62263.0,62262.0,0.056211]
[1728124210900,0.0075,62264.0,62263.0,0.05621]
[1728124211191,0.0037,62266.0,62265.0,0.056208]
[1728124211393,0.0075,62267.0,62266.0,0.056207]
[1728124211690,0.3645,62269.0,62268.0,0.056205]
[1728124211879,0.3608,62269.0,62268.0,0.29144092]
[1728124212193,0.537004,62269.0,62268.0,0.17144092]
[1728124212896,0.537004,62269.0,62268.0,0.17244092]
[1728124213689,0.537004,62269.0,62268.0,0.17344092]
[1728124213894,0.537004,62269.0,62268.0,0.20254987]
[1728124214895,0.176204,62269.0,62268.0,0.20254987]
[1728124215188,0.176204,62269.0,62268.0,0.20154987]
[1728124215383,0.176204,62269.0,62268.0,0.20254987]
[1728124215779,0.176204,62269.0,62268.0,0.20154987]
[1728124215991,0.176204,62269.0,62268.0,0.20254987]
[1728124216378,0.176204,62269.0,62268.0,0.08731395]
[1728124216379,0.25651628,62269.0,62268.0,0.08731395]
[1728124216585,0.29584189,62269.0,62268.0,0.08731395]
[1728124216783,0.47196089,62269.0,62268.0,0.08731395]
[1728124217091,0.35343918,62269.0,62268.0,0.08731395]
[1728124217291,0.17584189,62269.0,62268.0,0.08731395]
[1728124218792,0.17584189,62269.0,62268.0,0.05778634]
[1728124219993,0.2633088,62269.0,62268.0,0.05778634]
[1728124220194,0.35192639,62269.0,62268.0,0.05778634]
[1728124220990,0.35192639,62269.0,62268.0,0.02867739]
[1728124221495,0.17584189,62269.0,62268.0,0.02867739]
[1728124223396,0.056204,62269.0,62268.0,0.02867739]
[1728124231398,0.12654992,62269.0,62268.0,0.01904742]
[1728124231590,0.17584191,62269.0,62268.0,0.002]
[1728124232390,0.17584191,62269.0,62268.0,0.058205]
[1728124234602,0.17584227,62269.0,62268.0,0.058205]
[1728124236500,0.35198218,62269.0,62268.0,0.058205]
[1728124237609,0.17584227,62269.0,62268.0,0.058205]
[1728124238609,0.056204,62269.0,62268.0,0.10634584]
[1728124239397,0.056204,62269.0,62268.0,0.058205]
[1728124245611,0.056204,62269.0,62267.0,0.11680881]
[1728124245612,0.12654992,62269.0,62267.0,0.11680881]
[1728124245814,0.11963791,62268.0,62267.0,0.11680881]
[1728124246812,0.11963791,62268.0,62267.0,0.11780881]
[1728124247309,0.11963791,62268.0,62267.0,0.001]
[1728124247517,0.11963791,62268.0,62267.0,0.057206]
[1728124247812,0.11963791,62268.0,62267.0,0.086157]
[1728124248000,0.12063791,62268.0,62267.0,0.087157]
[1728124248712,0.12163791,62268.0,62267.0,0.087157]
[1728124249116,0.09061761,62268.0,62267.0,0.087157]
[1728124249308,0.12163791,62268.0,62267.0,0.087157]
[1728124252515,0.12163791,62268.0,62267.0,0.05882841]
[1728124253611,0.002,62268.0,62267.0,0.1230162]
[1728124260517,0.002,62268.0,62267.0,0.2430162]
[1728124260817,0.002,62268.0,62267.0,0.17882841]
[1728124267820,0.058205,62268.0,62267.0,0.002]
[1728124268214,0.089405,62268.0,62267.0,0.002]
[1728124268719,0.20904779,62268.0,62267.0,0.002]
[1728124269114,0.26664744,62268.0,62267.0,0.002]
[1728124270420,0.62744744,62268.0,62267.0,0.002]
[1728124271017,0.65609628,62268.0,62267.0,0.002]
[1728124271517,0.24600228,62268.0,62267.0,0.002]
[1728124271717,0.65609628,62268.0,62267.0,0.002]
[1728124271922,0.62744744,62268.0,62267.0,0.002]
[1728124272327,0.26664744,62268.0,62267.0,0.002]
[1728124272826,0.62744744,62268.0,62267.0,0.002]
[1728124273228,0.26664744,62268.0,62267.0,0.002]
[1728124273430,0.62744744,62268.0,62267.0,0.002]
[1728124275230,0.62744865,62268.0,62267.0,0.002]
[1728124275423,0.74607508,62268.0,62267.0,0.002]
[1728124275620,0.450205,62268.0,62267.0,0.11822739]
[1728124281132,0.089405,62268.0,62267.0,0.11821249]
[1728124281442,0.450205,62268.0,62267.0,0.11821249]
[1728124281632,0.450205,62268.0,62267.0,0.0823058]
[1728124282731,0.450205,62268.0,62267.0,0.19851466]
[1728124283431,0.450205,62268.0,62267.0,0.002]
[1728124284438,0.450205,62268.0,62267.0,0.0823058]
[1728124285930,0.089405,62268.0,62267.0,0.0823058]
[1728124286538,0.450205,62268.0,62267.0,0.0823058]
[1728124286735,0.089405,62268.0,62267.0,0.0823058]
[1728124287239,0.450205,62268.0,62267.0,0.0823058]
[1728124287433,0.089405,62268.0,62267.0,0.0823058]
[1728124287629,0.450205,62268.0,62267.0,0.0823058]
[1728124288033,0.089405,62268.0,62267.0,0.0823058]
[1728124288237,0.450205,62268.0,62267.0,0.0823058]
[1728124290231,0.089405,62268.0,62267.0,0.0823058]
[1728124290432,0.450205,62268.0,62267.0,0.0823058]
[1728124290641,0.52055714,62268.0,62267.0,0.0823058]
[1728124290833,0.52055714,62268.0,62267.0,0.002]
[1728124291030,0.15975714,62268.0,62267.0,0.002]
[1728124291330,0.20905349,62268.0,62267.0,0.002]
[1728124291631,0.56985349,62268.0,62267.0,0.002]
[1728124291834,0.71402766,62268.0,62267.0,0.002]
[1728124292028,0.35322766,62268.0,62267.0,0.002]
[1728124292231,0.20905349,62268.0,62267.0,0.002]
[1728124292438,0.56985349,62268.0,62267.0,0.002]
[1728124293434,0.20905349,62268.0,62267.0,0.002]
[1728124293740,0.56985349,62268.0,62267.0,0.002]
[1728124296036,0.7139747,62268.0,62267.0,0.002]
[1728124297341,0.3531747,62268.0,62267.0,0.002]
[1728124297536,0.7139747,62268.0,62267.0,0.002]
[1728124298033,0.3531747,62268.0,62267.0,0.002]
[1728124298235,0.7139747,62268.0,62267.0,0.002]
[1728124298439,0.56985349,62268.0,62267.0,0.002]
[1728124298632,0.450205,62268.0,62267.0,0.002]
[1728124298840,0.450205,62268.0,62267.0,0.11773196]
[1728124300143,0.450205,62268.0,62267.0,0.11773359]
[1728124303445,0.450205,62268.0,62267.0,0.11776386]
[1728124304739,0.450205,62268.0,62267.0,0.19811136]
[1728124304943,0.450205,62268.0,62267.0,0.11780428]
[1728124305754,0.56985493,62268.0,62267.0,0.002]
[1728124305948,0.71399205,62268.0,62267.0,0.002]
[1728124306144,0.56985493,62268.0,62267.0,0.002]
[1728124307049,0.71406327,62268.0,62267.0,0.002]
[1728124308253,0.35326327,62268.0,62267.0,0.002]
[1728124308447,0.71406327,62268.0,62267.0,0.002]
[1728124309050,0.35326327,62268.0,62267.0,0.002]
[1728124309350,0.71406327,62268.0,62267.0,0.002]
[1728124310257,0.52055799,62268.0,62267.0,0.002]
[1728124312445,0.56985552,62268.0,62267.0,0.002]
[1728124313354,0.74608281,62268.0,62267.0,0.002]
[1728124313554,0.56985552,62268.0,62267.0,0.002]
[1728124313759,0.450205,62268.0,62267.0,0.19818686]
[1728124316366,0.450205,62268.0,62267.0,0.002]
[1728124317166,0.450205,62268.0,62267.0,0.0662748]
[1728124317959,0.450205,62268.0,62267.0,0.002]
[1728124320758,0.57127114,62268.0,62253.0,0.0649]
[1728124320960,0.57127114,62268.0,62253.0,0.0612]
[1728124320961,0.12,62255.0,62253.0,0.0612]
[1728124321158,0.23966227,62255.0,62253.0,0.0612]
[1728124321456,0.056218,62254.0,62253.0,0.0612]
[1728124321662,0.35191602,62254.0,62253.0,0.0612]
[1728124322051,0.23348925,62254.0,62253.0,0.0612]
[1728124322356,0.35190703,62254.0,62253.0,0.0612]
[1728124322956,0.35190703,62254.0,62253.0,0.0323]
[1728124323758,0.35290703,62254.0,62253.0,0.0323]
[1728124324455,0.35390703,62254.0,62253.0,0.0323]
[1728124324860,0.35390703,62254.0,62253.0,0.002]
[1728124325064,0.35390703,62254.0,62246.0,0.0316]
[1728124325065,0.29768903,62254.0,62246.0,0.0644]
[1728124325267,0.23424476,62254.0,62253.0,0.001]
[1728124325460,0.31457587,62254.0,62253.0,0.001]
[1728124325961,0.71471069,62254.0,62253.0,0.001]
[1728124326270,0.71471069,62254.0,62246.0,0.0724]
[1728124326271,0.056224,62247.0,62246.0,0.0724]
[1728124326571,0.176224,62247.0,62246.0,0.0724]
[1728124326766,0.47173631,62247.0,62246.0,0.0724]
[1728124326959,0.35349891,62247.0,62246.0,0.0724]
[1728124327159,0.4716616,62247.0,62246.0,0.0724]
[1728124327669,0.4736616,62247.0,62246.0,0.008]
[1728124328057,0.056227,62244.0,62243.0,0.0318]
[1728124328266,0.29589293,62244.0,62243.0,0.0318]
[1728124328864,0.12,62244.0,62243.0,0.22835293]
[1728124329269,0.12,62244.0,62243.0,0.0318]
[1728124329658,0.12,62244.0,62243.0,0.0619]
[1728124329859,0.121,62244.0,62243.0,0.0619]
[1728124330575,0.177227,62244.0,62243.0,0.0619]
[1728124331071,0.183227,62244.0,62243.0,0.0619]
[1728124332882,0.183227,62244.0,62243.0,0.12597894]
[1728124333179,0.183227,62244.0,62243.0,0.0619]
[1728124333180,0.544027,62244.0,62243.0,0.0619]
[1728124333676,0.544027,62244.0,62243.0,0.07815233]
[1728124334275,0.544027,62244.0,62243.0,0.0301]
[1728124335964,0.57506124,62244.0,62243.0,0.0301]
[1728124336866,0.21426124,62244.0,62243.0,0.0301]
[1728124337068,0.57506124,62244.0,62243.0,0.0301]
[1728124340276,0.21426124,62244.0,62243.0,0.0301]
[1728124340869,0.2142591,62244.0,62243.0,0.0301]
[1728124341567,0.2142591,62244.0,62243.0,0.05846765]
[1728124343171,0.2142591,62244.0,62243.0,0.0301]
[1728124343981,0.183227,62244.0,62243.0,0.0301]
[1728124344184,0.183227,62244.0,62243.0,0.0617]
[1728124346384,0.063227,62244.0,62243.0,0.0617]
[1728124347372,0.063227,62244.0,62243.0,0.1420497]
[1728124347980,0.063227,62244.0,62243.0,0.2578578]
[1728124348481,0.063227,62244.0,62243.0,0.14188007]
[1728124348678,0.063227,62244.0,62243.0,0.25775347]
[1728124348874,0.063227,62244.0,62243.0,0.14188007]
[1728124349188,0.424027,62244.0,62243.0,0.14188007]
[1728124349480,0.424027,62244.0,62243.0,0.25779228]
[1728124349678,0.424027,62244.0,62243.0,0.0617]
[1728124351184,0.424027,62244.0,62243.0,0.0301]
[1728124352082,0.424027,62244.0,62243.0,0.11028007]
[1728124352481,0.063227,62244.0,62243.0,0.11028007]
[1728124352677,0.424027,62244.0,62243.0,0.0301]
[1728124353186,0.424027,62244.0,62243.0,0.22637782]
[1728124353386,0.063227,62244.0,62243.0,0.22637782]
[1728124353592,0.424027,62244.0,62243.0,0.22637782]
[1728124354279,0.424027,62244.0,62243.0,0.11609775]
[1728124354983,0.063227,62244.0,62243.0,0.11613025]
[1728124355293,0.424027,62244.0,62243.0,0.11613025]
[1728124355473,0.063227,62244.0,62243.0,0.11613025]
[1728124355790,0.424027,62244.0,62243.0,0.11613025]
[1728124356379,0.063227,62244.0,62243.0,0.11613025]
[1728124356786,0.424027,62244.0,62243.0,0.11613025]
[1728124357583,0.063227,62244.0,62243.0,0.11613025]
[1728124357783,0.424027,62244.0,62243.0,0.11613025]
[1728124359086,0.424027,62244.0,62238.0,0.02895539]
[1728124359087,0.05623,62242.0,62238.0,0.02895539]
[1728124359293,0.20033054,62242.0,62236.0,0.119734]
[1728124359495,0.12660734,62241.0,62236.0,0.119734]
[1728124359682,0.07037734,62240.0,62236.0,0.119734]
[1728124359880,0.07037707,62239.0,62236.0,0.119734]
[1728124360084,0.07037707,62238.0,62236.0,0.119734]
[1728124360286,0.07037707,62237.0,62236.0,0.119734]
[1728124360482,0.07037707,62239.0,62236.0,0.121734]
[1728124360990,0.07037707,62239.0,62236.0,0.119734]
[1728124361185,0.07037707,62239.0,62236.0,0.121734]
[1728124361384,0.07037707,62239.0,62236.0,0.125734]
[1728124361694,0.12660907,62239.0,62236.0,0.125734]
[1728124361994,0.07037707,62238.0,62236.0,0.125734]
[1728124362178,0.07037707,62237.0,62236.0,0.125734]
[1728124362388,0.07037707,62237.0,62236.0,0.15460231]
[1728124363111,0.07037707,62237.0,62236.0,0.15260231]
[1728124363299,0.07037707,62237.0,62236.0,0.15460231]
[1728124363686,0.07037707,62237.0,62236.0,0.15260231]
[1728124363884,0.07037707,62237.0,62236.0,0.15460231]
[1728124366185,0.056233,62238.0,62236.0,0.40925471]
[1728124366386,0.056233,62238.0,62237.0,0.3108854]
[1728124368089,0.056233,62238.0,62237.0,0.3138854]
[1728124368992,0.056233,62238.0,62237.0,0.3148854]
[1728124373904,0.0112,62240.0,62237.0,0.3148854]
[1728124374197,0.0112,62240.0,62238.0,0.25314413]
[1728124374198,0.067431,62240.0,62238.0,0.25314413]
[1728124374405,0.067431,62240.0,62239.0,0.25314413]
[1728124376692,0.067431,62240.0,62239.0,0.25414413]
[1728124377303,0.068431,62240.0,62239.0,0.25414413]
[1728124378905,0.068431,62240.0,62239.0,0.001]
[1728124379103,0.068431,62240.0,62239.0,0.25425533]
[1728124381105,0.18812231,62240.0,62239.0,0.001]
[1728124381406,0.33223534,62240.0,62239.0,0.001]
[1728124381703,0.13880832,62240.0,62239.0,0.001]
[1728124382410,0.13880773,62240.0,62239.0,0.001]
[1728124387807,0.08257673,62240.0,62239.0,0.539232]
[1728124388204,0.04323389,62240.0,62239.0,0.539232]
[1728124389200,0.0037,62242.0,62241.0,0.05623]
[1728124389395,0.0037,62246.0,62244.0,0.056227]
[1728124389599,0.41862301,62248.0,62245.0,0.3727076]
[1728124389798,0.3608,62248.0,62246.0,0.2527076]
[1728124389995,0.417024,62248.0,62247.0,0.2527076]
[1728124390505,0.417024,62248.0,62247.0,0.17151233]
[1728124390702,0.424024,62248.0,62247.0,0.17151233]
[1728124391505,0.007,62248.0,62247.0,0.33705303]
[1728124391704,0.007,62248.0,62247.0,0.08455028]
[1728124391903,0.007,62248.0,62247.0,0.33677664]
[1728124392305,0.0037,62253.0,62252.0,0.05622]
[1728124392511,0.0037,62258.0,62257.0,0.056215]
[1728124392704,0.05862344,62260.0,62258.0,0.056214]
[1728124393005,0.05862344,62260.0,62259.0,0.11506878]
[1728124393596,0.00241044,62260.0,62259.0,0.17128178]
[1728124394012,0.00641044,62260.0,62259.0,0.26751043]
[1728124394207,0.00641044,62260.0,62259.0,0.17128178]
[1728124395910,0.00641044,62260.0,62259.0,0.17228178]
[1728124396115,0.00641044,62260.0,62259.0,0.057213]
[1728124396116,0.0310235,62260.0,62259.0,0.057213]
[1728124396305,0.11965025,62260.0,62257.0,0.36264]
[1728124396608,0.11965025,62259.0,62258.0,0.056214]
[1728124396803,0.0310235,62259.0,62258.0,0.056214]
[1728124397210,0.29543978,62259.0,62258.0,0.056214]
[1728124397411,0.11965025,62259.0,62258.0,0.056214]
[1728124397614,0.11965025,62259.0,62258.0,0.176214]
[1728124398111,0.17480898,62259.0,62258.0,0.177214]
[1728124398414,0.21413865,62259.0,62258.0,0.177214]
[1728124398708,0.18311515,62259.0,62258.0,0.177214]
[1728124398907,0.26343573,62259.0,62258.0,0.177214]
[1728124399506,0.11965025,62259.0,62258.0,0.178214]
[1728124401315,0.07035317,62259.0,62258.0,0.178214]
[1728124401614,0.11964862,62259.0,62258.0,0.178214]
[1728124402219,0.2634341,62259.0,62258.0,0.178214]
[1728124402512,0.11964862,62259.0,62258.0,0.178214]
[1728124403016,0.26333473,62259.0,62258.0,0.178214]
[1728124403315,0.14368611,62259.0,62258.0,0.178214]
[1728124403515,0.17470961,62259.0,62258.0,0.178214]
[1728124403706,0.22400506,62259.0,62258.0,0.178214]
[1728124403908,0.26333473,62259.0,62258.0,0.178214]
[1728124404221,0.056212,62261.0,62260.0,0.056213]
[1728124406021,0.057212,62261.0,62260.0,0.057213]
[1728124406820,0.058212,62261.0,62260.0,0.058213]
[1728124411128,0.1075092,62261.0,62260.0,0.058213]
[1728124411330,0.20189811,62261.0,62260.0,0.058213]
[1728124411516,0.32154867,62261.0,62260.0,0.058213]
[1728124411717,0.12856536,62261.0,62260.0,0.058213]
[1728124415422,0.1285654,62261.0,62260.0,0.058213]
[1728124416327,0.17786251,62261.0,62260.0,0.058213]
[1728124417325,0.32154862,62261.0,62260.0,0.058213]
[1728124417521,0.17786251,62261.0,62260.0,0.058213]
[1728124419224,0.002,62261.0,62260.0,0.17358767]
[1728124419417,0.058212,62261.0,62260.0,0.17358767]
[1728124422324,0.058212,62261.0,62260.0,0.31102343]
[1728124426232,0.058212,62261.0,62260.0,0.17358767]
[1728124433241,0.058212,62261.0,62252.0,0.3608]
[1728124433242,0.12856539,62261.0,62252.0,0.3608]
[1728124433445,0.11965061,62260.0,62252.0,0.3608]
[1728124433647,0.11965061,62259.0,62252.0,0.3608]
[1728124433948,0.17643135,62253.0,62252.0,0.41702]
[1728124434251,0.20745495,62253.0,62252.0,0.41702]
[1728124434446,0.25675217,62253.0,62252.0,0.53814]
[1728124434748,0.20745495,62253.0,62252.0,0.89894]
[1728124435142,0.11965061,62253.0,62252.0,0.53914]
[1728124435343,0.11965061,62253.0,62252.0,0.92943745]
[1728124435537,0.12065061,62253.0,62252.0,0.56863745]
[1728124435746,0.12265061,62253.0,62252.0,0.93043745]
[1728124436741,0.21045495,62253.0,62252.0,0.93043745]
[1728124436945,0.29908196,62253.0,62252.0,0.44851745]
[1728124437145,0.37085062,62253.0,62252.0,0.44851745]
[1728124437449,0.28304628,62253.0,62252.0,0.44851745]
[1728124438452,0.28304628,62253.0,62252.0,0.08771745]
[1728124438659,0.28304628,62253.0,62252.0,0.44851745]
[1728124440657,0.28304628,62253.0,62252.0,0.08771745]
[1728124440961,0.28304628,62253.0,62252.0,0.44851745]
[1728124441259,0.16039567,62253.0,62252.0,0.86161106]
[1728124441857,0.16039567,62253.0,62252.0,0.50081106]
[1728124442063,0.16039567,62253.0,62252.0,0.99020733]
[1728124442762,0.16039567,62253.0,62252.0,0.86161106]
[1728124443063,0.16039567,62253.0,62252.0,0.86317135]
[1728124443751,0.0112,62256.0,62255.0,0.056217]
[1728124443955,0.056214,62259.0,62257.0,0.056215]
[1728124443956,0.067414,62259.0,62257.0,0.056215]
[1728124444154,0.067414,62259.0,62258.0,0.25417636]
[1728124444356,0.056214,62259.0,62258.0,0.25417636]
[1728124444762,0.056214,62259.0,62258.0,0.31039036]
[1728124445869,0.056214,62259.0,62258.0,0.31139036]
[1728124447270,0.057214,62259.0,62258.0,0.31239036]
[1728124448262,0.12756746,62259.0,62258.0,0.058214]
[1728124448466,0.17686473,62259.0,62258.0,0.058214]
[1728124450065,0.12065073,62259.0,62258.0,0.058214]
[1728124450271,0.12065073,62259.0,62258.0,0.178214]
[1728124450670,0.14534824,62259.0,62258.0,0.178214]
[1728124450974,0.19464551,62259.0,62258.0,0.178214]
[1728124451174,0.26499897,62259.0,62258.0,0.178214]
[1728124453869,0.26499897,62259.0,62258.0,0.058214]
[1728124454070,0.26499897,62259.0,62258.0,0.178214]
[1728124455275,0.12065073,62259.0,62258.0,0.178214]
[1728124456274,0.001,62259.0,62258.0,0.43196671]
[1728124460384,0.001,62259.0,62258.0,0.79276671]
[1728124460980,0.001,62259.0,62258.0,0.9052719]
[1728124461180,0.0037,62266.0,62258.0,0.9052719]
[1728124461181,0.0037,62266.0,62258.0,0.73655271]
[1728124461389,0.0037,62266.0,62263.0,0.17621]
[1728124461680,0.0037,62269.0,62268.0,0.056205]
[1728124461870,0.03328,62270.0,62269.0,0.12]
[1728124462072,0.0318,62270.0,62269.0,0.29196912]
[1728124462268,0.0318,62270.0,62269.0,0.38829982]
[1728124463183,0.0318,62270.0,62269.0,0.29196912]
[1728124463378,0.15143238,62270.0,62269.0,0.176204]
[1728124463977,0.15143238,62270.0,62269.0,0.178204]
[1728124464177,0.15243238,62270.0,62269.0,0.178204]
[1728124465884,0.20863638,62270.0,62269.0,0.178204]
[1728124466782,0.12002287,62270.0,62269.0,0.178204]
[1728124466980,0.20863523,62270.0,62269.0,0.178204]
[1728124467477,0.20763523,62270.0,62269.0,0.177204]
[1728124467781,0.20863523,62270.0,62269.0,0.178204]
[1728124469087,0.20863523,62270.0,62269.0,0.177204]
[1728124469291,0.20863523,62270.0,62269.0,0.178204]
[1728124470287,0.20863523,62270.0,62269.0,0.20768343]
[1728124471489,0.04882862,62270.0,62269.0,0.32404884]
[1728124471685,0.04882862,62270.0,62269.0,0.32404905]
[1728124471905,0.04882862,62270.0,62269.0,0.32404898]
[1728124476482,0.04882862,62270.0,62269.0,0.32374075]
[1728124478282,0.19291912,62270.0,62269.0,0.20768343]
[1728124478887,0.31255239,62270.0,62269.0,0.20768343]
[1728124482594,0.26326231,62270.0,62269.0,0.20768343]
[1728124482793,0.11917181,62270.0,62269.0,0.20768343]
[1728124486095,0.19291912,62270.0,62269.0,0.20768343]
[1728124486288,0.04882862,62270.0,62269.0,0.42015122]
[1728124487395,0.04882862,62270.0,62269.0,0.32384743]
[1728124487792,0.04882862,62270.0,62269.0,0.42015085]
[1728124488094,0.04882862,62270.0,62269.0,0.32384743]
[1728124490296,0.04882862,62270.0,62269.0,0.46244971]
[1728124494405,0.04882862,62270.0,62269.0,0.20768343]
[1728124497390,0.40962862,62270.0,62269.0,0.20768343]
[1728124498593,0.04882862,62270.0,62269.0,0.20768343]
[1728124498792,0.40962862,62270.0,62269.0,0.20768343]
[1728124500295,0.40962862,62270.0,62269.0,0.27194988]
[1728124500892,0.40962862,62270.0,62269.0,0.15194988]
[1728124501394,0.52926599,62270.0,62269.0,0.08768343]
[1728124504298,0.5292666,62270.0,62269.0,0.08768343]
[1728124504695,0.67358634,62270.0,62269.0,0.08768343]
[1728124504894,0.67358634,62270.0,62269.0,0.20768343]
[1728124505096,0.5292666,62270.0,62269.0,0.20768343]
[1728124506095,0.67358355,62270.0,62269.0,0.20768343]
[1728124506806,0.31278355,62270.0,62269.0,0.20768343]
[1728124509510,0.31278355,62270.0,62269.0,0.32716845]
[1728124509511,0.04882862,62270.0,62269.0,0.32716845]
[1728124512004,0.04882862,62270.0,62269.0,0.4695914]
[1728124513696,0.04882862,62270.0,62269.0,0.32716845]
[1728124516398,0.04882862,62270.0,62269.0,0.20768343]
[1728124516399,0.001,62270.0,62269.0,0.20768343]
[1728124517506,0.057204,62270.0,62269.0,0.20768343]
[1728124518510,0.057204,62270.0,62269.0,0.27194111]
[1728124518713,0.057204,62270.0,62269.0,0.18425768]
[1728124518909,0.057204,62270.0,62269.0,0.06425768]
[1728124519098,0.418004,62270.0,62269.0,0.06425768]
[1728124519618,0.418004,62270.0,62269.0,0.14881556]
[1728124520110,0.418004,62270.0,62269.0,0.08455788]
[1728124520407,0.418004,62270.0,62269.0,0.1488187]
[1728124520616,0.057204,62270.0,62269.0,0.1488187]
[1728124522808,0.057204,62270.0,62269.0,0.08455788]
[1728124524015,0.177204,62270.0,62269.0,0.06426838]
[1728124524317,0.177204,62270.0,62267.0,0.06426838]
[1728124524318,0.121,62270.0,62267.0,0.06426838]